fUSD/lending_fUSD_20251006
["ID","MTS","AMOUNT","RATE_DAILY","PERIOD"]
[389641618,1759764640430,-176.380076,0.00015,2]
[389641620,1759764640441,-176.380076,0.00015,2]
[389641622,1759764640451,-176.380076,0.00015,2]
[389641623,1759764640460,-176.380076,0.00015,2]
[389641624,1759764640469,-151.0,0.00015,2]
[389641625,1759764640478,-176.380076,0.00015,2]
[389641626,1759764640487,-151.0,0.00015,2]
[389641627,1759764640496,-151.0,0.00015,2]
[389641628,1759764640505,-176.380076,0.00015,2]
[389641629,1759764640514,-176.380076,0.00015,2]
[389641630,1759764640523,-151.0,0.00015,2]
[389641631,1759764640532,-176.380076,0.00015,2]
[389641632,1759764640540,-151.0,0.00015,2]
[389641633,1759764640549,-177.892549,0.00015,2]
[389641634,1759764640558,-151.0,0.00015,2]
[389641635,1759764640567,-151.0,0.00015,2]
[389641636,1759764640576,-177.892549,0.00015,2]
[389641637,1759764640585,-151.0,0.00015,2]
[389641638,1759764640594,-176.380076,0.00015,2]
[389641639,1759764640602,-177.892549,0.00015,2]
[389641640,1759764640611,-151.0,0.00015,2]
[389641641,1759764640620,-176.380076,0.00015,2]
[389641642,1759764640628,-176.380076,0.00015,2]
[389641643,1759764640637,-151.0,0.00015,2]
[389641644,1759764640646,-151.0,0.00015,2]
[389641645,1759764640655,-177.892549,0.00015,2]
[389641646,1759764640663,-151.0,0.00015,2]
[389641647,1759764640672,-1024.41431587,0.00015,2]
[389641648,1759764640681,-225.04252,0.00015,2]
[389641649,1759764640690,-177.892549,0.00015,2]
[389641651,1759764640699,-151.0,0.00015,2]
[389641652,1759764640708,-177.892549,0.00015,2]
[389641653,1759764640718,-151.0,0.00015,2]
[389641655,1759764640727,-177.892549,0.00015,2]
[389641657,1759764640736,-151.0,0.00015,2]
[389641659,1759764640745,-151.0,0.00015,2]
[389641661,1759764640755,-177.892549,0.00015,2]
[389641662,1759764640764,-151.0,0.00015,2]
[389641664,1759764640774,-151.0,0.00015,2]
[389641667,1759764640784,-151.0,0.00015,2]
[389641668,1759764640793,-177.892549,0.00015,2]
[389641670,1759764640802,-151.0,0.00015,2]
[389641672,1759764640811,-151.0,0.00015,2]
[389641674,1759764640820,-177.892549,0.00015,2]
[389641676,1759764640829,-151.0,0.00015,2]
[389641678,1759764640839,-151.0,0.00015,2]
[389641680,1759764640848,-261.081215,0.00015,2]
[389641682,1759764640857,-177.892549,0.00015,2]
[389641684,1759764640866,-151.0,0.00015,2]
[389641686,1759764640875,-177.892549,0.00015,2]
[389641688,1759764640884,-151.0,0.00015,2]
[389641690,1759764640894,-151.0,0.00015,2]
[389641693,1759764640904,-154.362361,0.00015,2]
[389641694,1759764640912,-151.0,0.00015,2]
[389641696,1759764640922,-151.0,0.00015,2]
[389641698,1759764640931,-151.0,0.00015,2]
[389641700,1759764640939,-151.0,0.00015,2]
[389641702,1759764640949,-151.0,0.00015,2]
[389641704,1759764640958,-151.0,0.00015,2]
[389641706,1759764640967,-151.0,0.00015,2]
[389641708,1759764640976,-151.0,0.00015,2]
[389641710,1759764640985,-240.801468,0.00015,2]
[389641712,1759764640994,-185.442636,0.00015,2]
[389641714,1759764641003,-185.442636,0.00015,2]
[389641717,1759764641013,-185.442636,0.00015,2]
[389641718,1759764641022,-185.442636,0.00015,2]
[389641720,1759764641033,-185.442636,0.00015,2]
[389641723,1759764641042,-185.442636,0.00015,2]
[389641725,1759764641051,-185.442636,0.00015,2]
[389641727,1759764641060,-185.442636,0.00015,2]
[389641729,1759764641070,-185.442636,0.00015,2]
[389641731,1759764641079,-151.0,0.00015,2]
[389641733,1759764641089,-151.0,0.00015,2]
[389641735,1759764641098,-185.442636,0.00015,2]
[389641737,1759764641109,-185.442636,0.00015,2]
[389641739,1759764641118,-185.442636,0.00015,2]
[389641741,1759764641127,-176.216739,0.00015,2]
[389641743,1759764641136,-176.216739,0.00015,2]
[389641745,1759764641145,-176.216739,0.00015,2]
[389641747,1759764641154,-193.215036,0.00015,2]
[389641748,1759764641163,-193.215036,0.00015,2]
[389641751,1759764641172,-176.216739,0.00015,2]
[389641753,1759764641182,-193.215036,0.00015,2]
[389641755,1759764641191,-176.216739,0.00015,2]
[389641757,1759764641202,-176.216739,0.00015,2]
[389641759,1759764641211,-193.215036,0.00015,2]
[389641761,1759764641219,-193.215036,0.00015,2]
[389641763,1759764641228,-193.215036,0.00015,2]
[389641765,1759764641238,-176.216739,0.00015,2]
[389641767,1759764641250,-176.216739,0.00015,2]
[389641769,1759764641259,-176.216739,0.00015,2]
[389641771,1759764641268,-193.215036,0.00015,2]
[389641773,1759764641277,-193.215036,0.00015,2]
[389641775,1759764641286,-176.216739,0.00015,2]
[389641777,1759764641295,-193.215036,0.00015,2]
[389641779,1759764641304,-176.216739,0.00015,2]
[389641781,1759764641313,-176.216739,0.00015,2]
[389641783,1759764641322,-193.215036,0.00015,2]
[389641785,1759764641331,-193.215036,0.00015,2]
[389641786,1759764641340,-193.215036,0.00015,2]
[389641788,1759764641350,-340.125503,0.00015,2]
[389641790,1759764641359,-340.125503,0.00015,2]
[389641792,1759764641368,-340.125503,0.00015,2]
[389641794,1759764641377,-151.0,0.00015,2]
[389641797,1759764641387,-151.0,0.00015,2]
[389641799,1759764641396,-151.0,0.00015,2]
[389641801,1759764641406,-151.0,0.00015,2]
[389641803,1759764641416,-340.125503,0.00015,2]
[389641805,1759764641425,-340.125503,0.00015,2]
[389641807,1759764641435,-153.572194,0.00015,2]
[389641809,1759764641444,-340.125503,0.00015,2]
[389641811,1759764641454,-151.0,0.00015,2]
[389641813,1759764641463,-151.0,0.00015,2]
[389641814,1759764641471,-151.0,0.00015,2]
[389641817,1759764641480,-340.125503,0.00015,2]
[389641819,1759764641490,-340.125503,0.00015,2]
[389641821,1759764641499,-151.0,0.00015,2]
[389641823,1759764641508,-340.125503,0.00015,2]
[389641825,1759764641518,-151.0,0.00015,2]
[389641826,1759764641527,-151.0,0.00015,2]
[389641828,1759764641536,-151.0,0.00015,2]
[389641830,1759764641545,-1423.820308,0.00015,2]
[389641833,1759764641554,-1423.820308,0.00015,2]
[389641834,1759764641563,-151.0,0.00015,2]
[389641837,1759764641572,-1423.820308,0.00015,2]
[389641838,1759764641582,-340.125503,0.00015,2]
[389641841,1759764641591,-151.0,0.00015,2]
[389641842,1759764641600,-340.125503,0.00015,2]
[389641844,1759764641610,-151.181068,0.00015,2]
[389641846,1759764641619,-1423.820308,0.00015,2]
[389641848,1759764641628,-1423.820308,0.00015,2]
[389641851,1759764641637,-340.125503,0.00015,2]
[389641852,1759764641647,-1423.820308,0.00015,2]
[389641854,1759764641656,-151.788321,0.00015,2]
[389641856,1759764641665,-1423.820308,0.00015,2]
[389641858,1759764641678,-1423.820308,0.00015,2]
[389641860,1759764641687,-151.0,0.00015,2]
[389641862,1759764641697,-1423.820308,0.00015,2]
[389641864,1759764641706,-151.0,0.00015,2]
[389641866,1759764641716,-273.678384,0.00015,2]
[389641868,1759764641735,-1423.820308,0.00015,2]
[389641870,1759764641748,-1423.820308,0.00015,2]
[389641872,1759764641758,-289.324812,0.00015,2]
[389641874,1759764641774,-1423.820308,0.00015,2]
[389641876,1759764641784,-289.324812,0.00015,2]
[389641878,1759764641794,-289.324812,0.00015,2]
[389641880,1759764641803,-151.0,0.00015,2]
[389641882,1759764641812,-151.0,0.00015,2]
[389641884,1759764641821,-289.324812,0.00015,2]
[389641886,1759764641830,-151.0,0.00015,2]
[389641888,1759764641839,-176.514806,0.00015,2]
[389641890,1759764641848,-190.519426,0.00015,2]
[389641892,1759764641857,-289.324812,0.00015,2]
[389641894,1759764641866,-151.0,0.00015,2]
[389641896,1759764641875,-151.0,0.00015,2]
[389641898,1759764641885,-289.324812,0.00015,2]
[389641900,1759764641894,-151.0,0.00015,2]
[389641902,1759764641904,-270.21447354,0.00015016,2]
[389641904,1759764641917,-250.0,0.00015047,2]
[389641906,1759764641928,-168.0,0.00015075,2]
[389641907,1759764641938,-150.0,0.00015098,2]
[389641910,1759764641949,-171.70131482,0.000151,2]
[389641912,1759764641958,-171.70131481,0.000151,2]
[389641914,1759764641968,-5565.01258165,0.00015114,2]
[389641916,1759764641977,-4858.63559035,0.00015126,2]
[389641917,1759764641987,-338.0,0.00015173,2]
[389641919,1759764641996,-2095.1985264,0.0001526,2]
[389641921,1759764642005,-15132.11834402,0.00015261,2]
[389641924,1759764642015,-168.0,0.00015262,2]
[389641926,1759764642025,-613.56,0.00015265,2]
[389641928,1759764642034,-150.0,0.0001527,2]
[389641930,1759764642043,-302.2,0.0001532,2]
[389641932,1759764642057,-442.57,0.0001533,2]
[389641934,1759764642067,-430.62,0.0001533,2]
[389641936,1759764642076,-303.78,0.00015341,2]
[389641938,1759764642085,-161.18,0.00015347,2]
[389641940,1759764642095,-438.51,0.00015354,2]
[389641942,1759764642105,-436.35,0.00015354,2]
[389641944,1759764642114,-5565.01258165,0.00015358,2]
[389641946,1759764642123,-303.75,0.00015369,2]
[389641947,1759764642132,-688.15,0.00015423,2]
[389641949,1759764642141,-150.0,0.00015426,2]
[389641952,1759764642151,-4858.63559035,0.00015429,2]
[389641953,1759764642160,-6486.27022245,0.00015438,2]
[389641956,1759764642170,-169.96,0.00015443,2]
[389641957,1759764642179,-5455.0,0.00015445,2]
[389641960,1759764642189,-514.0299938,0.00015445,2]
[389641962,1759764642200,-151.0,0.00015445,2]
[389641963,1759764642209,-601.3376128,0.00015445,2]
[389641965,1759764642220,-151.0,0.00015445,2]
[389641967,1759764642230,-151.0,0.00015445,2]
[389641969,1759764642245,-322.6107,0.00015445,2]
[389641972,1759764642255,-7965.41053268,0.00015445,2]
[389641974,1759764642265,-231.28369723,0.00015445,2]
[389641975,1759764642274,-314.661343,0.00015445,2]
[389641978,1759764642286,-151.0,0.00015445,2]
[389641979,1759764642295,-314.661343,0.00015445,2]
[389641982,1759764642305,-151.0,0.00015445,2]
[389641984,1759764642315,-151.0,0.00015445,2]
[389641986,1759764642324,-314.661343,0.00015445,2]
[389641988,1759764642334,-151.0,0.00015445,2]
[389641989,1759764642343,-314.661343,0.00015445,2]
[389641991,1759764642352,-151.0,0.00015445,2]
[389641994,1759764642361,-151.0,0.00015445,2]
[389641996,1759764642370,-151.0,0.00015445,2]
[389641998,1759764642380,-151.0,0.00015445,2]
[389641999,1759764642389,-151.0,0.00015445,2]
[389642002,1759764642399,-151.0,0.00015445,2]
[389642004,1759764642408,-151.0,0.00015445,2]
[389642006,1759764642417,-151.0,0.00015445,2]
[389642008,1759764642427,-151.0,0.00015445,2]
[389642010,1759764642437,-303.72,0.00015452,2]
[389642012,1759764642448,-303.32,0.00015456,2]
[389642014,1759764642458,-303.32,0.0001546,2]
[389642016,1759764642467,-302.66,0.00015466,2]
[389642018,1759764642477,-303.68,0.00015474,2]
[389642020,1759764642486,-305.03,0.00015485,2]
[389642022,1759764642495,-8260.13072239,0.000155,2]
[389642024,1759764642506,-151.0,0.000155,2]
[389642026,1759764642515,-151.0,0.000155,2]
[389642028,1759764642525,-151.0,0.000155,2]
[389642030,1759764642534,-151.0,0.000155,2]
[389642032,1759764642543,-151.0,0.000155,2]
[389642034,1759764642553,-151.0,0.000155,2]
[389642036,1759764642562,-151.0,0.000155,2]
[389642038,1759764642572,-151.0,0.000155,2]
[389642039,1759764642582,-151.0,0.000155,2]
[389642040,1759764642591,-151.0,0.000155,2]
[389642041,1759764642600,-151.0,0.000155,2]
[389642042,1759764642609,-151.0,0.000155,2]
[389642043,1759764642618,-151.0,0.000155,2]
[389642044,1759764642629,-151.532054,0.000155,2]
[389642045,1759764642638,-200.137194,0.000155,2]
[389642046,1759764642647,-200.137194,0.000155,2]
[389642047,1759764642656,-200.137194,0.000155,2]
[389642048,1759764642666,-200.137194,0.000155,2]
[389642049,1759764642676,-261.39026,0.000155,2]
[389642050,1759764642685,-261.39026,0.000155,2]
[389642051,1759764642695,-151.0,0.000155,2]
[389642052,1759764642706,-261.39026,0.000155,2]
[389642053,1759764642715,-257.45449,0.000155,2]
[389642054,1759764642725,-261.39026,0.000155,2]
[389642055,1759764642734,-257.45449,0.000155,2]
[389642056,1759764642744,-257.45449,0.000155,2]
[389642057,1759764642753,-257.45449,0.000155,2]
[389642058,1759764642763,-370.68887098,0.0001552,2]
[389642059,1759764642774,-1003.48745422,0.00015521,2]
[389642060,1759764642783,-1000.0,0.00015521,2]
[389642061,1759764642793,-954.89564396,0.00015521,2]
[389642062,1759764642803,-1000.0,0.00015521,2]
[389642063,1759764642812,-1000.0,0.00015521,2]
[389642064,1759764642822,-1000.0,0.00015521,2]
[389642065,1759764642831,-500.82841268,0.00015521,2]
[389642066,1759764642840,-1000.0,0.00015521,2]
[389642067,1759764642850,-463.79703866,0.00015521,2]
[389642068,1759764642860,-500.0,0.00015521,2]
[389642069,1759764642869,-1000.0,0.00015521,2]
[389642070,1759764642879,-1000.0,0.00015521,2]
[389642071,1759764642888,-1000.0,0.00015521,2]
[389642072,1759764642898,-500.0,0.00015521,2]
[389642073,1759764642908,-1000.0,0.00015521,2]
[389642075,1759764642918,-151.0,0.00015521,2]
[389642077,1759764642928,-151.0,0.00015521,2]
[389642079,1759764642938,-151.0,0.00015521,2]
[389642082,1759764642948,-340.125503,0.00015521,2]
[389642084,1759764642957,-340.125503,0.00015521,2]
[389642086,1759764642967,-151.0,0.00015521,2]
[389642088,1759764642977,-340.125503,0.00015521,2]
[389642090,1759764642986,-151.0,0.00015521,2]
[389642092,1759764642995,-1423.820308,0.00015521,2]
[389642093,1759764643005,-151.0,0.00015521,2]
[389642097,1759764643015,-1423.820308,0.00015521,2]
[389642100,1759764643026,-340.125507,0.00015521,2]
[389642102,1759764643035,-1423.820308,0.00015521,2]
[389642103,1759764643046,-1423.820311,0.00015521,2]
[389642104,1759764643056,-289.324812,0.00015521,2]
[389642105,1759764643065,-312.0,0.00015522,2]
[389642106,1759764643074,-302.83,0.00015523,2]
[389642107,1759764643084,-312.0,0.00015533,2]
[389642108,1759764643093,-613.56,0.00015539,2]
[389642109,1759764643102,-7670.69034299,0.00015555,2]
[389642110,1759764643112,-151.0,0.00015555,2]
[389642111,1759764643122,-151.0,0.00015561,2]
[389642112,1759764643132,-151.0,0.00015561,2]
[389642113,1759764643142,-151.0,0.00015561,2]
[389642114,1759764643151,-151.0,0.00015561,2]
[389642115,1759764643161,-151.0,0.00015561,2]
[389642116,1759764643172,-151.0,0.00015561,2]
[389642117,1759764643181,-215.967015,0.00015561,2]
[389642118,1759764643191,-314.926342,0.00015561,2]
[389642120,1759764643203,-314.926342,0.00015561,2]
[389642121,1759764643212,-314.926342,0.00015561,2]
[389642123,1759764643222,-151.0,0.00015561,2]
[389642124,1759764643234,-314.926342,0.00015561,2]
[389642125,1759764643246,-230.238772,0.00015561,2]
[389642126,1759764643256,-230.238772,0.00015561,2]
[389642127,1759764643266,-230.238772,0.00015561,2]
[389642128,1759764643275,-230.238772,0.00015561,2]
[389642129,1759764643284,-151.0,0.00015561,2]
[389642130,1759764643295,-268.696951,0.00015561,2]
[389642131,1759764643304,-268.696951,0.00015561,2]
[389642132,1759764643315,-268.696951,0.00015561,2]
[389642133,1759764643324,-268.696951,0.00015561,2]
[389642134,1759764643334,-273.798653,0.00015561,2]
[389642135,1759764643344,-273.798653,0.00015561,2]
[389642136,1759764643354,-151.0,0.00015561,2]
[389642137,1759764643363,-273.798653,0.00015561,2]
[389642138,1759764643372,-273.798653,0.00015561,2]
[389642139,1759764643381,-176.380076,0.00015561,2]
[389642140,1759764643390,-176.380076,0.00015561,2]
[389642141,1759764643400,-151.0,0.00015561,2]
[389642142,1759764643410,-176.380076,0.00015561,2]
[389642143,1759764643419,-151.0,0.00015561,2]
[389642144,1759764643429,-151.0,0.00015561,2]
[389642145,1759764643439,-176.380076,0.00015561,2]
[389642146,1759764643450,-151.0,0.00015561,2]
[389642147,1759764643460,-151.0,0.00015561,2]
[389642148,1759764643469,-151.0,0.00015561,2]
[389642149,1759764643479,-151.0,0.00015561,2]
[389642150,1759764643488,-151.0,0.00015561,2]
[389642151,1759764643498,-151.0,0.00015561,2]
[389642152,1759764643508,-176.216739,0.00015561,2]
[389642153,1759764643518,-193.215036,0.00015561,2]
[389642154,1759764643528,-176.216739,0.00015561,2]
[389642155,1759764643538,-193.215036,0.00015561,2]
[389642156,1759764643548,-176.216739,0.00015561,2]
[389642157,1759764643558,-193.215036,0.00015561,2]
[389642158,1759764643568,-176.216739,0.00015561,2]
[389642159,1759764643577,-193.215036,0.00015561,2]
[389642160,1759764643587,-312.0,0.00015561,2]
[389642161,1759764643597,-312.0,0.00015575,2]
[389642162,1759764643607,-312.0,0.00015582,2]
[389642163,1759764643617,-244.308741,0.000156,2]
[389642164,1759764643627,-244.308741,0.000156,2]
[389642165,1759764643637,-244.308741,0.000156,2]
[389642166,1759764643647,-244.308741,0.000156,2]
[389642167,1759764643656,-151.0,0.000156,2]
[389642168,1759764643666,-151.0,0.000156,2]
[389642169,1759764643676,-164.050421,0.000156,2]
[389642170,1759764643686,-151.0,0.000156,2]
[389642171,1759764643697,-164.050421,0.000156,2]
[389642172,1759764643707,-297.652585,0.000156,2]
[389642173,1759764643717,-164.050421,0.000156,2]
[389642174,1759764643727,-164.050421,0.000156,2]
[389642175,1759764643739,-151.0,0.000156,2]
[389642177,1759764643749,-252.961156,0.000156,2]
[389642179,1759764643759,-767.853024,0.000156,2]
[389642180,1759764643769,-767.853024,0.000156,2]
[389642181,1759764643779,-767.853024,0.000156,2]
[389642182,1759764643789,-767.853024,0.000156,2]
[389642183,1759764643800,-177.892549,0.000156,2]
[389642184,1759764643811,-177.892549,0.000156,2]
[389642185,1759764643821,-177.892549,0.000156,2]
[389642186,1759764643831,-177.892549,0.000156,2]
[389642187,1759764643841,-185.442636,0.000156,2]
[389642188,1759764643851,-185.442636,0.000156,2]
[389642189,1759764643866,-185.442636,0.000156,2]
[389642190,1759764643876,-185.442636,0.000156,2]
[389642191,1759764643886,-1600.0,0.00015601,2]
[389642192,1759764643896,-5565.01258165,0.00015603,2]
[389642193,1759764643907,-151.0,0.00015666,2]
[389642194,1759764643917,-151.0,0.00015666,2]
[389642195,1759764643927,-151.0,0.000157,2]
[389642196,1759764643937,-151.0,0.000157,2]
[389642197,1759764643948,-151.0,0.000157,2]
[389642198,1759764643959,-151.0,0.000157,2]
[389642199,1759764643969,-151.0,0.000157,2]
[389642200,1759764643979,-153.891869,0.000157,2]
[389642201,1759764643989,-151.0,0.000157,2]
[389642202,1759764644000,-151.0,0.000157,2]
[389642203,1759764644010,-1000.0,0.000157,2]
[389642204,1759764644020,-500.0,0.00015712,2]
[389642205,1759764644030,-166.524638,0.00015717,2]
[389642206,1759764644040,-270.21447354,0.00015719,2]
[389642207,1759764644050,-4858.63559035,0.00015732,2]
[389642208,1759764644059,-798.18495709,0.00015736,2]
[389642209,1759764644069,-150.0,0.00015755,2]
[389642210,1759764644082,-312.0,0.00015761,2]
[389642211,1759764644092,-289.91451272,0.00015781,2]
[389642212,1759764644102,-11300.0,0.000158,5]
[389642213,1759764644112,-613.56,0.00015813,2]
[389642214,1759764644123,-267.6,0.00015845,2]
[389642215,1759764644135,-5565.01258165,0.00015848,2]
[389642216,1759764644146,-3174.31352,0.0001585,2]
[389642217,1759764644158,-289.91451272,0.00015863,2]
[389642218,1759764644168,-1000.0,0.00015873,2]
[389642219,1759764644179,-70096.88712371,0.0001589,2]
[389642220,1759764644190,-244.308741,0.0001589,2]
[389642221,1759764644205,-244.308741,0.0001589,2]
[389642222,1759764644216,-244.308741,0.0001589,2]
[389642223,1759764644226,-244.308741,0.0001589,2]
[389642224,1759764644239,-151.0,0.0001589,2]
[389642225,1759764644249,-272.210774,0.0001589,2]
[389642226,1759764644259,-281.94716,0.0001589,2]
[389642227,1759764644270,-151.0,0.0001589,2]
[389642228,1759764644281,-151.0,0.0001589,2]
[389642229,1759764644292,-151.0,0.0001589,2]
[389642230,1759764644303,-314.661343,0.0001589,2]
[389642231,1759764644318,-151.0,0.0001589,2]
[389642232,1759764644329,-314.661343,0.0001589,2]
[389642233,1759764644341,-151.0,0.0001589,2]
[389642234,1759764644352,-214.045116,0.0001589,2]
[389642235,1759764644364,-314.661343,0.0001589,2]
[389642236,1759764644376,-314.661343,0.0001589,2]
[389642237,1759764644388,-151.0,0.0001589,2]
[389642238,1759764644398,-151.0,0.0001589,2]
[389642239,1759764644408,-151.0,0.0001589,2]
[389642240,1759764644419,-151.0,0.0001589,2]
[389642241,1759764644429,-151.0,0.0001589,2]
[389642242,1759764644439,-154.136954,0.0001589,2]
[389642243,1759764644456,-151.0,0.0001589,2]
[389642244,1759764644468,-151.0,0.0001589,2]
[389642245,1759764644478,-151.0,0.0001589,2]
[389642246,1759764644488,-151.0,0.0001589,2]
[389642247,1759764644499,-151.0,0.0001589,2]
[389642248,1759764644509,-151.0,0.0001589,2]
[389642249,1759764644518,-226.390668,0.0001589,2]
[389642250,1759764644528,-151.0,0.0001589,2]
[389642251,1759764644539,-314.926342,0.0001589,2]
[389642252,1759764644552,-314.926342,0.0001589,2]
[389642253,1759764644562,-314.926342,0.0001589,2]
[389642254,1759764644573,-314.926342,0.0001589,2]
[389642255,1759764644583,-230.238772,0.0001589,2]
[389642256,1759764644593,-230.238772,0.0001589,2]
[389642257,1759764644603,-230.238772,0.0001589,2]
[389642258,1759764644614,-230.238772,0.0001589,2]
[389642259,1759764644624,-151.0,0.0001589,2]
[389642260,1759764644636,-168.324775,0.0001589,2]
[389642261,1759764644646,-151.0,0.0001589,2]
[389642262,1759764644656,-180.137647,0.0001589,2]
[389642263,1759764644667,-151.0,0.0001589,2]
[389642264,1759764644677,-151.0,0.0001589,2]
[389642265,1759764644687,-151.0,0.0001589,2]
[389642266,1759764644699,-151.0,0.0001589,2]
[389642267,1759764644709,-170.69844,0.0001589,2]
[389642268,1759764644719,-200.137194,0.0001589,2]
[389642269,1759764644730,-200.137194,0.0001589,2]
[389642270,1759764644740,-200.137194,0.0001589,2]
[389642271,1759764644750,-200.137194,0.0001589,2]
[389642272,1759764644760,-151.0,0.0001589,2]
[389642273,1759764644770,-261.39026,0.0001589,2]
[389642274,1759764644781,-261.39026,0.0001589,2]
[389642275,1759764644791,-272.585928,0.0001589,2]
[389642276,1759764644803,-261.39026,0.0001589,2]
[389642277,1759764645150,-257.45449,0.0001589,2]
[389642278,1759764645160,-261.39026,0.0001589,2]
[389642279,1759764645170,-257.45449,0.0001589,2]
[389642280,1759764645180,-257.45449,0.0001589,2]
[389642281,1759764645189,-257.45449,0.0001589,2]
[389642282,1759764645200,-164.050421,0.0001589,2]
[389642283,1759764645209,-151.0,0.0001589,2]
[389642284,1759764645218,-164.050421,0.0001589,2]
[389642285,1759764645228,-164.050421,0.0001589,2]
[389642286,1759764645238,-164.050427,0.0001589,2]
[389642287,1759764645252,-151.0,0.0001589,2]
[389642288,1759764645262,-767.853024,0.0001589,2]
[389642289,1759764645274,-767.853024,0.0001589,2]
[389642290,1759764645283,-767.853024,0.0001589,2]
[389642291,1759764645293,-268.696951,0.0001589,2]
[389642292,1759764645302,-268.696951,0.0001589,2]
[389642293,1759764645311,-268.696951,0.0001589,2]
[389642294,1759764645321,-268.696945,0.0001589,2]
[389642295,1759764645331,-273.798653,0.0001589,2]
[389642296,1759764645341,-767.853024,0.0001589,2]
[389642297,1759764645351,-273.798653,0.0001589,2]
[389642298,1759764645360,-215.882408,0.0001589,2]
[389642299,1759764645370,-273.798653,0.0001589,2]
[389642300,1759764645380,-273.798649,0.0001589,2]
[389642301,1759764645389,-176.380076,0.0001589,2]
[389642302,1759764645398,-176.380076,0.0001589,2]
[389642303,1759764645408,-151.0,0.0001589,2]
[389642304,1759764645418,-176.380076,0.0001589,2]
[389642305,1759764645427,-151.0,0.0001589,2]
[389642306,1759764645437,-177.892549,0.0001589,2]
[389642307,1759764645448,-151.0,0.0001589,2]
[389642308,1759764645458,-176.380076,0.0001589,2]
[389642309,1759764645467,-177.892549,0.0001589,2]
[389642310,1759764645477,-151.0,0.0001589,2]
[389642311,1759764645487,-151.0,0.0001589,2]
[389642312,1759764645497,-177.892549,0.0001589,2]
[389642313,1759764645506,-151.0,0.0001589,2]
[389642314,1759764645516,-151.0,0.0001589,2]
[389642315,1759764645526,-177.892545,0.0001589,2]
[389642316,1759764645539,-151.0,0.0001589,2]
[389642317,1759764645549,-151.0,0.0001589,2]
[389642318,1759764645559,-185.442636,0.0001589,2]
[389642319,1759764645569,-185.442636,0.0001589,2]
[389642320,1759764645579,-185.442636,0.0001589,2]
[389642321,1759764645589,-185.442628,0.0001589,2]
[389642322,1759764645599,-176.216739,0.0001589,2]
[389642323,1759764645608,-193.215036,0.0001589,2]
[389642324,1759764645618,-176.216739,0.0001589,2]
[389642325,1759764645628,-193.215036,0.0001589,2]
[389642326,1759764645638,-176.216739,0.0001589,2]
[389642327,1759764645648,-193.215036,0.0001589,2]
[389642328,1759764645658,-176.216731,0.0001589,2]
[389642329,1759764645667,-193.215036,0.0001589,2]
[389642330,1759764645677,-152.464213,0.000159,2]
[389642331,1759764645687,-151.0,0.000159,2]
[389642332,1759764645698,-151.0,0.000159,2]